Cogmind - Beta 14 @@@ ROGUE MODE // 2025.01.03 @ 12:58:34 Player: Niko Result: Destroyed by 1E-3CS(R) with Subdweller Laser Performance ------------- Evolutions (0) 0 Regions Visited (3) 600 Robots Destroyed (13) 65 Value Destroyed (376) 376 Prototype IDs (0) 0 Alien Tech Used (0) 0 Bonus (21) 21 TOTAL SCORE: 1062 Bonus ------- Follower Combat Kills 21 Cogmind --------- Core Integrity 0/250 Matter 274/300 Energy 86/100 System Corruption 0% Temperature Cool (6) Movement Rolling (110) Ox2 Location -10/Subcaves Parts ------- > --- POWER (1) -------- (None) > --- PROPULSION (2) --- Wheel > --- UTILITY (2) ------ Large Storage Unit Improved Targeting Computer > --- WEAPON (2) ------- Beam Cannon > --- INVENTORY (15) --- Large Matter Pod (150) ECM Suite Utility Shielding Medium Armor Plating Medium Armor Plating Medium Armor Plating Medium Armor Plating Authchip [Device] Decoy Drone Bay Peak State ------------ > --- POWER ------------ Ion Engine > --- PROPULSION ------- Wheel Wheel > --- UTILITY ---------- Large Storage Unit Improved Targeting Computer > --- WEAPON ----------- Grenade Launcher Plasma Cutter > --- INVENTORY -------- Light Ion Engine Light Treads Wheel Wheel Large Matter Pod ECM Suite Utility Shielding Medium Armor Plating Medium Armor Plating Medium Armor Plating Medium Armor Plating Authchip [Device] Decoy Drone Bay Grenade Launcher [Rating: 12] Favorites ----------- Power Ion Engine Engine Ion Engine Propulsion Wheel Wheel Wheel Utility Large Storage Unit Storage Large Storage Unit Processor Improved Targeting Computer Weapon Plasma Cutter Energy Gun EM Pulse Gun Energy Cannon Beam Cannon Launcher Grenade Launcher Special Weapon Plasma Cutter Build | -11 -10 -10 -10 ------- Run | Yrd Mat Min Sub Slots Evolved . | . . . . Power . | . . . . Propulsion . | . . . . Utility . | . . . . Weapon . | . . . . Parts Attached 20 | 6 6 4 4 Power 3 | 1 1 . 1 Engine 3 | 1 1 . 1 Core . | . . . . Reactor . | . . . . Propulsion 5 | 2 1 2 . Treads . | . . . . Leg . | . . . . Wheel 5 | 2 1 2 . Hover . | . . . . Flight . | . . . . Utility 3 | 1 2 . . Device . | . . . . Storage 2 | 1 1 . . Processor 1 | . 1 . . Hackware . | . . . . Protection . | . . . . Artifact . | . . . . Weapon 9 | 2 2 2 3 Energy Gun 2 | 2 . . . Energy Cannon 1 | . . . 1 Ballistic Gun . | . . . . Ballistic Cannon . | . . . . Launcher 3 | . . 1 2 Special Weapon 3 | . 2 1 . Impact Weapon . | . . . . Slashing Weapon . | . . . . Piercing Weapon . | . . . . Special Melee Weapon . | . . . . Unidentified Prototypes . | . . . . Parts Lost 12 | . 5 . 7 Power 3 | . 1 . 2 Propulsion 2 | . 1 . 1 Utility . | . . . . Weapon 7 | . 3 . 4 Highest Loss Streak 5 | . 2 . 5 To Critical Strikes . | . . . . Average Slot Usage (%) 94 | . 89 95 96 Engine 14 | . 14 14 14 Wheel 27 | . 26 28 27 Storage 14 | . 14 14 14 Processor 12 | . 8 14 14 Energy Gun 2 | . 10 . . Launcher 3 | . . 2 9 Special Weapon 17 | . 14 20 15 Peak Build Rating 12 | 6 11 12 12 Average Rating 10 | 3 8 11 11 On Entrance 6 | . 6 9 12 Naked Turns . | . . . . Heaviest Build 31 | 14 29 29 31 Greatest Support 26 | 26 26 20 20 Greatest Overweight (x) 2 | . 2 1 2 Average Overweight (x) . | . . 1 1 Largest Inventory Capacity 15 | 8 15 15 15 Average Capacity 14 | 6 13 15 15 Most Carried 15 | 4 11 15 14 Average Carried 11 | 1 5 13 13 Final Capacity 15 | 8 15 15 15 Final Carried 14 | 1 11 14 10 Class Distribution -------------------- 100% | Mutant Dominant Class ---------------- Mutant | -10/Materials Mutant | -10/Mines Mutant | -10/Subcaves Resources | -11 -10 -10 -10 ----------- Run | Yrd Mat Min Sub Matter Collected 679 | 233 217 40 189 Remotely . | . . . . Salvage Created 402 | . 324 . 78 Parts 19 | . 15 . 4 Haulers Intercepted . | . . . . Recyclers Shooed 1 | . 1 . . Parts Field Recycled . | . . . . Retrieved Matter . | . . . . Parts Self-Destructed 7 | . . . 7 Prevented . | . . . . Kills | -11 -10 -10 -10 ------- Run | Yrd Mat Min Sub Combat Hostiles Destroyed 9 | . 4 . 5 Guns 2 | . 2 . . Cannons 2 | . 2 . . AOE 5 | . . . 5 Classes Destroyed 5 | . 4 . 1 Worker 1 | . 1 . . Builder 2 | . 2 . . Recycler 1 | . 1 . . Grunt 4 | . 4 . . Subdweller 5 | . . . 5 Best Kill Streak 4 | . 4 . 4 Combat Bots Only 4 | . 2 . 4 Max Kills in Single Turn 1 | . 1 . 1 Gunslinging . | . . . . Exploded 1 | . . . 1 Melee . | . . . . Uniques/NPCs Destroyed . | . . . . Combat | -11 -10 -10 -10 -------- Run | Yrd Mat Min Sub Hostile Shots Fired 74 | . 32 3 39 Missed 17 | . 8 . 9 Damage Taken 1140 | . 364 26 750 Core 253 | . 52 17 184 Absorbed by Shields . | . . . . Core Remaining (%) 100 | 100 . . . Volleys Fired 51 | . 29 6 16 Largest 2 | . 2 1 2 Hottest 100 | . 80 100 90 Shots Fired 85 | . 53 6 26 Gun 28 | . 28 . . Cannon 6 | . . . 6 Launcher 20 | . . . 20 Special 31 | . 25 6 . Kinetic . | . . . . Thermal 37 | . 25 6 6 Explosive 20 | . . . 20 Electromagnetic 28 | . 28 . . Robot Hit Streak 12 | . 12 . 9 Robot Miss Streak 4 | . 4 3 1 Penetration Max . | . . . . Secondary Targets . | . . . . Shots Hit Robots 52 | . 35 . 17 Core Hits 26 | . 14 . 12 Critical Kills . | . . . . Critical Parts Destroyed . | . . . . Critical Strikes . | . . . . Melee Attacks . | . . . . Impact . | . . . . Slashing . | . . . . Piercing . | . . . . Sneak Attacks . | . . . . Combat Hostiles . | . . . . Follow-up Attacks . | . . . . Damage Inflicted 1278 | . 425 . 853 Guns 262 | . 262 . . Cannons 71 | . . . 71 Explosions 782 | . . . 782 Melee . | . . . . Ramming . | . . . . Kinetic . | . . . . Thermal 234 | . 163 . 71 Explosive 782 | . . . 782 Electromagnetic 262 | . 262 . . Impact . | . . . . Slashing . | . . . . Piercing . | . . . . Highest Corruption . | . . . . Average Corruption . | . . . . Corruption Purged . | . . . . Corruption Blocked . | . . . . Overload Shots . | . . . . Overflow Damage . | . . . . Projectiles . | . . . . Explosions . | . . . . Melee . | . . . . Knockbacks . | . . . . Impact . | . . . . Kinetic . | . . . . Secondary . | . . . . Self-Inflicted Damage 25 | . . . 25 Shots 3 | . . . 3 Rammed . | . . . . Targets Rammed . | . . . . Kicked . | . . . . Crushed . | . . . . Highest Temperature 285 | . 285 20 259 Average Temperature 103 | . 114 12 137 Received Heat Transfer 878 | . 177 . 701 Siege Activations . | . . . . Robots Corrupted . | . . . . Combat Hostiles . | . . . . Parts Fried 3 | . 3 . . Impact Corruptions . | . . . . Robots Melted . | . . . . Combat Hostiles . | . . . . Parts Melted . | . . . . Heat Transferred 703 | . 555 . 148 Parts Sabotaged . | . . . . Parts Stolen . | . . . . Parts Stripped . | . . . . Power Chain Reactions . | . . . . Alert | -11 -10 -10 -10 ------- Run | Yrd Mat Min Sub Peak Influence 125 | . 125 76 . Initial . | . . . . Average 43 | . 78 26 . Maximum Alert Level . | . . . . Low Security (%) 100 | 100 100 100 . Level 1 . | . . . . Level 2 . | . . . . Level 3 . | . . . . Level 4 . | . . . . Level 5 . | . . . . High Security . | . . . . Max Security . | . . . . Squads Dispatched 3 | . 3 . . Investigation 1 | . 1 . . Extermination . | . . . . Reinforcement 2 | . 2 . . Assault . | . . . . Garrison . | . . . . Intercept . | . . . . Searches Triggered . | . . . . Construction Impeded . | . . . . Haulers Reinforced . | . . . . Active Scanning Responses . | . . . . Cargo Convoy Interrupts . | . . . . Stealth | -11 -10 -10 -10 --------- Run | Yrd Mat Min Sub Distress Signals 1 | . 1 . . Communications Jammed . | . . . . Distress Signals . | . . . . Times Spotted 17 | . 7 3 7 Peak Tracking Total 3 | . 3 3 3 Tactical Retreats . | . . . . Traps | -11 -10 -10 -10 ------- Run | Yrd Mat Min Sub Traps Triggered 2 | . 2 . . Indirectly . | . . . . Trap Hack Attempts . | . . . . Triggered . | . . . . Disarmed . | . . . . Reprogrammed . | . . . . Reused . | . . . . Traps Extracted . | . . . . Installed . | . . . . Triggered . | . . . . Machines | -11 -10 -10 -10 ---------- Run | Yrd Mat Min Sub Machines Disabled 1 | . . 1 . Max in Single Turn 1 | . . 1 . Machines Repaired . | . . . . Machines Dismantled 1 | . . 1 . Machines Sabotaged . | . . . . Overloaded Fab Kills . | . . . . Hacking | -11 -10 -10 -10 --------- Run | Yrd Mat Min Sub Machines Accessed 4 | . 2 2 . Terminals 3 | . 2 1 . Fabricators . | . . . . Repair Stations . | . . . . Recycling Units . | . . . . Scanalyzers . | . . . . Garrison Access . | . . . . Total Hacks 9 | . 6 3 . Successful 6 | . 4 2 . Failed 3 | . 2 1 . Catastrophic . | . . . . Database Lockouts . | . . . . Manual 4 | . 3 1 . Terminals 8 | . 6 2 . Fabricators . | . . . . Repair Stations . | . . . . Recycling Units . | . . . . Scanalyzers . | . . . . Garrison Access . | . . . . Terminal Hacks 5 | . 3 2 . Record 2 | . 2 . . Open Door 1 | . . 1 . Patrol Status 1 | . 1 . . Zone Layout 1 | . . 1 . Fabricator Hacks . | . . . . Repair Station Hacks . | . . . . Recycling Unit Hacks . | . . . . Scanalyzer . | . . . . Garrison Access Hacks . | . . . . Unauthorized Hacks 1 | . 1 . . Terminals 1 | . 1 . . Botnet 1 | . 1 . . Fabricators . | . . . . Repair Stations . | . . . . Recycling Units . | . . . . Scanalyzers . | . . . . Garrison Access . | . . . . Data Cores Recovered . | . . . . Used . | . . . . Hacking Detections 3 | . 2 1 . Full Trace Events 1 | . 1 . . Feedback Events . | . . . . Feedback Blocked . | . . . . Robot Schematics Acquired . | . . . . Robots Built . | . . . . Authchips . | . . . . Time . | . . . . Total Robot Build Rating . | . . . . Part Schematics Acquired . | . . . . Parts Built . | . . . . Authchips . | . . . . Time . | . . . . Total Part Build Rating . | . . . . Parts Repaired . | . . . . Time . | . . . . Parts Recycled . | . . . . Recycled Matter . | . . . . Retrieved Matter . | . . . . Retrieved Components . | . . . . Parts Scanalyzed . | . . . . Part Schematics Acquired . | . . . . Parts Damaged . | . . . . Bothacking | -11 -10 -10 -10 ------------ Run | Yrd Mat Min Sub Used RIF Installer . | . . . . Robots Hacked . | . . . . Non-combat . | . . . . Combat . | . . . . Robot Hacks Applied . | . . . . Relay Couplers Released . | . . . . Fabnet Peak Effective % . | . . . . Robots Rewired . | . . . . Allies Hacked . | . . . . Hacks Repelled . | . . . . Allies | -11 -10 -10 -10 -------- Run | Yrd Mat Min Sub Total Allies 4 | . . 4 . Largest Group 3 | . . 3 2 Highest-Rated Group 63 | . . 63 32 Highest-Rated Ally 31 | . . 31 16 Total Orders . | . . . . Ally Attacks 18 | . . 10 8 Total Damage 217 | . . 109 108 Kills 3 | . . 3 . Allies Corrupted . | . . . . Allies Melted 1 | . . . 1 Intel | -11 -10 -10 -10 ------- Run | Yrd Mat Min Sub Robot Analysis Total . | . . . . Derelict Logs Recovered 3 | . . 1 2 Drone Launches . | . . . . Drone Recoveries . | . . . . Exploration | -11 -10 -10 -10 ------------- Run | Yrd Mat Min Sub Turns Passed 1546 | 50 415 712 369 Spaces Moved 1097 | 46 287 424 340 Core 11 | 11 . . . Treads . | . . . . Legs . | . . . . Wheels 1086 | 35 287 424 340 Hover . | . . . . Flight . | . . . . Fastest Speed 50 | 50 90 95 95 Average Speed 95 | 80 98 95 95 Slowest Speed 110 | 90 110 95 110 Overloaded Moves . | . . . . Propulsion Burnouts . | . . . . Robots Hopped . | . . . . Cave-ins Triggered . | . . . . Exploration Rate (%) 39 | 5 38 85 31 Regions Visited 3 Branch Regions 2 Pre-discovered Areas 1 | . . . 1 Known Exits Taken . | . . . . Unknown Exits Taken 3 | 1 1 1 . Scrap Searched 3 | . . 3 . Spaces Dug 3 | . . 3 . Terrain Destroyed 106 | . . 3 103 Melee . | . . . . Projectile 3 | . . 3 . AOE 103 | . . . 103 Terrain Rammed . | . . . . Walls Destroyed . | . . . . Machines Disabled . | . . . . Actions | -11 -10 -10 -10 --------- Run | Yrd Mat Min Sub Total 1471 | 58 342 711 360 Wait 264 | . . 264 . Move 1094 | 45 286 423 340 Hop . | . . . . Pick Up 31 | 7 18 6 . Fast Attach . | . . . . Attach 20 | 6 6 4 4 Detach 1 | . . 1 . Swap . | . . . . Drop 6 | . 3 3 . Fire 51 | . 29 6 16 Melee . | . . . . Ram . | . . . . Kick . | . . . . Crush . | . . . . Escape Stasis . | . . . . Rewire . | . . . . Trap . | . . . . Miscellaneous 4 | . . 4 . Route ------- -11/Scrapyard -10/Materials (discovered 3 exits: [*Mat] / *Min x2) -10/Mines -10/Subcaves History --------- Turn | Location | Event 19 | -11/Scrapyard | Discovered new exit (range 15) 51 | -11/Scrapyard | Entered Materials 172 | -10/Materials | Discovered new exit (range 7) 307 | -10/Materials | Build established: Mutant 370 | -10/Materials | Discovered new exit (range 16) 462 | -10/Materials | Discovered new exit (range 4) 466 | -10/Materials | Entered Mines 469 | -10/Mines | Assisted by bots powering up and referring to "LRC-V3" 772 | -10/Mines | Found the Drone Emporium 778 | -10/Mines | Found Prototype Device 805 | -10/Mines | Received a Mining Laser from a helpful Derelict 1157 | -10/Mines | Discovered new exit (range 5) 1178 | -10/Mines | Entered Subcaves 1178 | -10/Subcaves | Accompanied by 2 allies 1191 | -10/Subcaves | Learned 4 Materials zone layouts 1222 | -10/Subcaves | Shifting Twisted Machinery released Sub. Laser 1223 | -10/Subcaves | Shifting Twisted Machinery released Sub. Beam Cannon 1381 | -10/Subcaves | Ambushed by Subdwellers from Twisted Machinery 1478 | -10/Subcaves | Core integrity fell below 50% 1482 | -10/Subcaves | Ambushed by Subdweller buried in earth 1485 | -10/Subcaves | Ambushed by Subdweller buried in earth 1544 | -10/Subcaves | Core integrity fell below 20% 1547 | -10/Subcaves | Destroyed by 1E-3CS(R) with Subdweller Laser Last Messages --------------- TS-CAX(R) destroyed. HB-ODA(R) destroyed. 3V-D6Q(R): "SLEEPOVER!" The unstable cave ceiling collapses. 3V-D6Q(R) destroyed. QX-ANU(R): "ARGHSUB!" The unstable cave ceiling collapses. Ion Engine destroyed. Destroyed Scrap Shield. QX-ANU(R) destroyed. The unstable cave ceiling collapses. Acquired 55 matter. The unstable cave ceiling collapses. Acquired 53 matter. Acquired 11 matter. Wheel destroyed. Grenade Launcher destroyed. The unstable cave ceiling collapses. Grenade Launcher destroyed. Lgt. Ion Engine destroyed. Map ----- +----------------------------------------------------+ | ?????????????????# ##??????????????????????????? | | ?????????????????# #???????????????????????????? | | ?????????????????## #???????????????????????????? | | ?????????????????## #???????????????????????????? | | ?????????????????# ######??????????????????????? | | ?????????????????## ## ##?????????????????????? | | ??????????????????# ## #?????????????????????? | | ???????????????##?# ## #??###????????????????? | | ?????????????### ## ### #????##??????????? | | ?????????????# ## ????? ?????????? | | ??????????#??## # % ## #????? "???????? | | ??????????? ?#?## ## ### #????? "????#### | | ????????????# # ## ### ### ###### #????? | | ????????????# %## ## % ###????# | | ????????????## ## % ##???# | | ????????????## ## "????# | | ???????????# % ## ??????? | | ???????????##### ### # ## ### #???????#?# | | ???????????????###??#### ### ### #??????? # | | ???????????????????????###### % #?????? " | | ?????????????????####???#### ########" " | | ???????????????### ##### # R # # # ## ##### | | ??????????????## # ## ##" | | ??????????????# % | | ??????????????# R ## # | | ??????????????## ## @ # # ## | | ???????????????# ## # # ### ##### | | ???????????????# # #?####???## | | ??????????????## ######????????# | | ??????????????# ## ## #????????????# | | ?????????????## ### ########????????????# # | | ?????????????# ## #?# #???????????????????##### | | ?????????#####< ## ##?# #???????????????????????? | | ?????????# #"" ####??# #???????????????????????? | | ?????????# #????## ###?????????????????????? | | ?????????# ###### % ##????????????????????? | | ?????????# #" ## #????????????????????? | | ????????### ## # % % #????????????????????? | | ????"" ##" # # #????????????????????? | | ????"""" " ## # #????????????????????? | | ??"" " """ ## ## ##????????????????????? | | ???" " " " ### ####### #?????????????????????? | | ???" """""#### ##??## #?????????????????????? | | ???#######???## ##?# ?????????????????????? | | ??????????????# #### #????????????????????? | | ??????????????# ###### ##???????????????????? | | ??????????????# ## ##??????????????????? | | ??????????????# #??????????????????? | | ??????????????## #??????????????????? | | ???????????????# # #??????????????????? | +----------------------------------------------------+ Best States ------------- Heat Dissipation 25 Energy Generation 10 Energy Capacity 250 Matter Stores 300 Matter Capacity 300 Sight Range 16 Terrain Scan Density 10 Evasion (%) 50 Targeting Accuracy 6 Authchip Count 1 Item Schematics ----------------- None Robot Schematics ------------------ None Fabricated ------------ Nothing Alien Tech Used ----------------- None Achievements -------------- None Challenges ------------ None Game ------ Seed HardcellCarbideWarhead Manual? 0 Play Time 00:18:32 Cumulative 16.7 hours Start 2024.12.02 @ 22:01:32 End 2025.01.03 @ 12:58:34 Sessions 3 Manual Loads 0 Difficulty Rogue Special Mode None Game No. 32 Rogue 32 Adventurer 0 Explorer 0 Win Type - Total 0 Types 0/0/0/0/0/0/0/0/0 Lore% 12 Gallery% 22 Achievement% 22 Wizard Run 0 Options --------- Layout 1 ASCII 0 Keyboard 0 Movement Mouse Keybinds 0 Fullscreen 1 Font 24/Smallcaps Map View 50x35 Zoom Use 0% Tactical HUD 0 Map Filters NONE Filters NONE Steam 1 RUN: 84e859f9-9b19-4df4-bed1-f61f41f07334